Cogmind - Beta 16 @@@ ROGUE MODE // 2025.10.25 @ 02:38:16 Player: mEkbOk Result: Destroyed by B9-CNY(R) with Subdweller Machine Gun Performance ------------- Evolutions (0) 0 Regions Visited (3) 600 Robots Destroyed (27) 135 Value Destroyed (685) 685 Prototype IDs (1) 20 Alien Tech Used (0) 0 Bonus (0) 0 TOTAL SCORE: 1440 Bonus ------- None Cogmind --------- Core Integrity 0/250 Matter 256/300 Energy 124/125 System Corruption 0% Temperature Cool (20) Movement Walking (190) Ox1 Location -10/Subcaves Parts ------- > --- POWER (1) -------- Light Ion Engine > --- PROPULSION (2) --- Aluminum Leg Aluminum Leg > --- UTILITY (2) ------ Small Storage Unit Sensor Drone Bay (19/20) > --- WEAPON (2) ------- Subdweller Beam Cannon Light Assault Rifle > --- INVENTORY (8) ---- Light Ion Engine Aluminum Leg Aluminum Leg Backup Plating I Particle Gun Assault Rifle Flamer Peak State ------------ > --- POWER ------------ Light Ion Engine > --- PROPULSION ------- Aluminum Leg Aluminum Leg > --- UTILITY ---------- Small Storage Unit Sensor Drone Bay > --- WEAPON ----------- Particle Gun Light Assault Rifle > --- INVENTORY -------- Light Ion Engine Aluminum Leg Aluminum Leg Backup Plating I Subdweller Beam Cannon Assault Rifle Flamer [Rating: 15] Favorites ----------- Power Light Ion Engine Engine Light Ion Engine Power Core Light Nuclear Core Propulsion Light Treads Treads Light Treads Leg Aluminum Leg Utility Small Storage Unit Device Terrain Scanner Storage Small Storage Unit Protection Backup Plating I Weapon Light Assault Rifle Energy Gun Particle Gun Energy Cannon Subdweller Beam Cannon Ballistic Gun Light Assault Rifle Build | -11 -10 -10 -10 ------- Run | Yrd Mat Min Sub Slots Evolved . | . . . . Power . | . . . . Propulsion . | . . . . Utility . | . . . . Weapon . | . . . . Parts Attached 19 | 7 7 1 4 Power 3 | 2 1 . . Engine 2 | 2 . . . Core 1 | . 1 . . Reactor . | . . . . Propulsion 8 | 2 3 1 2 Treads 4 | 2 1 1 . Leg 4 | . 2 . 2 Wheel . | . . . . Hover . | . . . . Flight . | . . . . Utility 3 | 1 1 . 1 Device 2 | . 1 . 1 Storage 1 | 1 . . . Processor . | . . . . Hackware . | . . . . Protection . | . . . . Artifact . | . . . . Weapon 5 | 2 2 . 1 Energy Gun 1 | . 1 . . Energy Cannon 1 | . . . 1 Ballistic Gun 3 | 2 1 . . Ballistic Cannon . | . . . . Launcher . | . . . . Special Weapon . | . . . . Impact Weapon . | . . . . Slashing Weapon . | . . . . Piercing Weapon . | . . . . Special Melee Weapon . | . . . . Unidentified Prototypes 1 | . . . 1 Parts Lost 7 | . 7 . . Power 2 | . 2 . . Propulsion 2 | . 2 . . Utility 1 | . 1 . . Weapon 2 | . 2 . . Highest Loss Streak 2 | . 2 . . To Critical Strikes . | . . . . Average Backups 6 | 3 4 7 7 Power 1 | . 1 1 1 Propulsion 3 | 1 3 4 3 Utility . | . . . 1 Weapon 1 | . . . 2 Tool/Special . | . . . . Unused Backups 5 | . . 1 4 Power 1 | . . . 1 Propulsion 1 | . . . 1 Utility . | . . . . Weapon 2 | . . . 2 Tool/Special 1 | . . 1 . Average Slot Usage (%) 95 | . 88 100 100 Engine 13 | . 12 14 14 Treads 20 | . 18 25 14 Leg 7 | . 8 2 14 Device 3 | . 4 . 7 Storage 14 | . 14 14 14 Protection 7 | . . 14 7 Energy Gun 11 | . 8 14 12 Ballistic Gun 16 | . 19 14 14 Peak Build Rating 15 | 6 9 9 15 Average Rating 8 | 3 7 8 12 On Entrance 5 | . 6 8 9 Avg Prop Armor Cover (%) . | . . . . Naked Turns . | . . . . Heaviest Build 31 | 13 14 13 31 Greatest Support 40 | 40 40 40 40 Greatest Overweight (x) 1 | . . . 1 Average Overweight (x) . | . . . . Largest Inventory Capacity 8 | 8 8 8 8 Average Capacity 7 | 7 8 8 8 Most Carried 8 | 6 7 8 8 Average Carried 6 | 3 4 7 7 Final Capacity 8 | 8 8 8 8 Final Carried 8 | 4 5 8 7 Class Distribution -------------------- 100% | Mutant Dominant Class ---------------- Mutant | -10/Materials Mutant | -10/Mines Mutant | -10/Subcaves Resources | -11 -10 -10 -10 ----------- Run | Yrd Mat Min Sub Matter Collected 584 | 203 333 34 14 Remotely . | . . . . Salvage Created 861 | . 716 42 103 Parts 57 | . 39 4 14 Haulers Intercepted . | . . . . Recyclers Shooed 1 | . 1 . . Parts Field Recycled . | . . . . Retrieved Matter . | . . . . Parts Self-Destructed . | . . . . Prevented . | . . . . Parts Restored . | . . . . Kills | -11 -10 -10 -10 ------- Run | Yrd Mat Min Sub Combat Hostiles Destroyed 25 | . 19 3 3 Guns 25 | . 19 3 3 Classes Destroyed 5 | . 4 . 1 Worker 1 | . 1 . . Recycler 1 | . 1 . . Swarmer 9 | . 6 3 . Grunt 13 | . 13 . . Subdweller 3 | . . . 3 Best Kill Streak 4 | . 4 3 2 Combat Bots Only 4 | . 4 3 2 Max Kills in Single Turn 2 | . 2 1 1 Gunslinging . | . . . . Exploded . | . . . . Melee . | . . . . Uniques/NPCs Destroyed . | . . . . Combat | -11 -10 -10 -10 -------- Run | Yrd Mat Min Sub Hostile Shots Fired 153 | . 130 5 18 Missed 48 | . 41 2 5 Hits 105 | . 89 3 13 Projectile 105 | . 89 3 13 Critical Strikes 1 | . 1 . . Damage Taken 1218 | . 925 26 267 Core 258 | . 194 . 64 Absorbed by Shields . | . . . . Regen/Repaired (Parts) 61 | . 61 . . Core Remaining (%) 100 | 100 . . . Volleys Fired 107 | . 85 4 18 Largest 2 | . 2 2 2 Hottest 100 | . 85 85 100 Shots Fired 208 | . 164 8 36 Gun 206 | . 164 8 34 Cannon 2 | . . . 2 Launcher . | . . . . Special . | . . . . Kinetic 158 | . 136 4 18 Thermal 50 | . 28 4 18 Explosive . | . . . . Electromagnetic . | . . . . Robot Hit Streak 13 | . 13 3 8 Robot Miss Streak 6 | . 6 2 1 Penetration Max . | . . . . Secondary Targets 4 | . 3 1 . Max Gunslinging Chain 1 | . 1 1 . Shots Hit Robots 112 | . 89 4 19 Core Hits 51 | . 39 3 9 Critical Kills 1 | . 1 . . Critical Parts Destroyed . | . . . . Critical Strikes 3 | . 2 . 1 Burn 2 | . 1 . 1 Destroy 1 | . 1 . . Melee Attacks . | . . . . Impact . | . . . . Slashing . | . . . . Piercing . | . . . . Sneak Attacks . | . . . . Combat Hostiles . | . . . . Follow-up Attacks . | . . . . Damage Inflicted 1288 | . 1016 47 225 Guns 1255 | . 1013 47 195 Cannons 30 | . . . 30 Explosions . | . . . . Melee . | . . . . Ramming 3 | . 3 . . Kinetic 848 | . 762 15 71 Thermal 437 | . 251 32 154 Explosive . | . . . . Electromagnetic . | . . . . Impact . | . . . . Slashing . | . . . . Piercing . | . . . . Highest Corruption . | . . . . Average Corruption . | . . . . Corruption Purged . | . . . . Corruption Blocked . | . . . . Overload Shots . | . . . . Overflow Damage . | . . . . Projectiles . | . . . . Explosions . | . . . . Melee . | . . . . Knockbacks . | . . . . Impact . | . . . . Kinetic . | . . . . Secondary . | . . . . Self-Inflicted Damage . | . . . . Shots . | . . . . Rammed 1 | . 1 . . Targets Rammed 1 | . 1 . . Kicked . | . . . . Crushed . | . . . . Highest Temperature 384 | . 384 146 24 Average Temperature 86 | . 103 73 7 Received Heat Transfer 408 | . 378 . 30 Siege Activations . | . . . . Martial Activations . | . . . . Shielding Activations . | . . . . Robots Disrupted . | . . . . Combat Hostiles . | . . . . Robots Corrupted . | . . . . Combat Hostiles . | . . . . Parts Fried . | . . . . Impact Corruptions . | . . . . Robots Melted . | . . . . Combat Hostiles . | . . . . Parts Melted 4 | . 3 . 1 Heat Transferred 1147 | . 666 74 407 Parts Sabotaged . | . . . . Parts Stolen . | . . . . Parts Stripped . | . . . . Power Chain Reactions . | . . . . Alert | -11 -10 -10 -10 ------- Run | Yrd Mat Min Sub Maximum Alert Level 1 | . 1 . . Low Security (%) 75 | 100 48 100 . Level 1 24 | . 51 . . Level 2 . | . . . . Level 3 . | . . . . Level 4 . | . . . . Level 5 . | . . . . High Security . | . . . . Max Security . | . . . . Peak Influence 328 | . 328 64 . Initial 31 | . . 31 . Average 88 | . 182 3 . Influence Increases 725 | . 655 70 . Destroy 0b10 Robot/C 440 | . 380 60 . Destroy 0b10 Robot/NC 10 | . 10 . . Destroy Leader 90 | . 80 10 . Successful Hack 35 | . 35 . . Lose Combat Pursuer 150 | . 150 . . Influence Decreases 725 | . 572 101 52 Entered New Map 80 | . . 52 28 Time Decay 425 | . 352 49 24 Lost Part 70 | . 70 . . Purge Threat 150 | . 150 . . Squads Dispatched 4 | . 4 . . Investigation 1 | . 1 . . Extermination . | . . . . Reinforcement 3 | . 3 . . Assault . | . . . . Garrison . | . . . . Intercept . | . . . . Searches Triggered . | . . . . Construction Impeded . | . . . . Haulers Reinforced . | . . . . Active Scanning Responses . | . . . . Cargo Convoy Interrupts . | . . . . Stealth | -11 -10 -10 -10 --------- Run | Yrd Mat Min Sub Distress Signals 2 | . 2 . . Communications Jammed . | . . . . Distress Signals . | . . . . Times Spotted 41 | . 34 3 4 Peak Tracking Total 13 | . 13 2 2 Tactical Retreats 3 | . 3 . . Traps | -11 -10 -10 -10 ------- Run | Yrd Mat Min Sub Traps Triggered . | . . . . Indirectly . | . . . . Trap Hack Attempts . | . . . . Triggered . | . . . . Disarmed . | . . . . Reprogrammed . | . . . . Reused . | . . . . Traps Extracted . | . . . . Installed . | . . . . Triggered . | . . . . Machines | -11 -10 -10 -10 ---------- Run | Yrd Mat Min Sub Machines Disabled . | . . . . Max in Single Turn . | . . . . Machines Repaired . | . . . . Machines Dismantled . | . . . . Machines Sabotaged . | . . . . Overloaded Fab Kills . | . . . . Hacking | -11 -10 -10 -10 --------- Run | Yrd Mat Min Sub Machines Accessed 10 | . 9 1 . Terminals 6 | . 6 . . Fabricators . | . . . . Repair Stations 1 | . 1 . . Recycling Units 2 | . 2 . . Scanalyzers . | . . . . Garrison Access . | . . . . Total Hacks 30 | . 29 1 . Successful 16 | . 15 1 . Failed 14 | . 14 . . Catastrophic 2 | . 2 . . Database Lockouts . | . . . . Manual 14 | . 13 1 . Terminals 19 | . 19 . . Fabricators . | . . . . Repair Stations 4 | . 4 . . Recycling Units 6 | . 6 . . Scanalyzers . | . . . . Garrison Access . | . . . . Terminal Hacks 7 | . 6 1 . Open Door 1 | . . 1 . Branch Access Points 1 | . 1 . . Terminal Index 1 | . 1 . . Recycling Unit Index 1 | . 1 . . Alert Level 1 | . 1 . . Unreport Threat 1 | . 1 . . Locate Traps 1 | . 1 . . Fabricator Hacks . | . . . . Repair Station Hacks 3 | . 3 . . Scan Component 1 | . 1 . . Repair 1 | . 1 . . Refit 1 | . 1 . . Recycling Unit Hacks 4 | . 4 . . Report Inventory 3 | . 3 . . Retrieve Components 1 | . 1 . . Scanalyzer . | . . . . Garrison Access Hacks . | . . . . Unauthorized Hacks 2 | . 2 . . Terminals 2 | . 2 . . Track 2 | . 2 . . Fabricators . | . . . . Repair Stations . | . . . . Recycling Units . | . . . . Scanalyzers . | . . . . Garrison Access . | . . . . Data Cores Recovered . | . . . . Used . | . . . . Hacking Detections 9 | . 9 . . Full Trace Events 4 | . 4 . . Feedback Events . | . . . . Feedback Blocked . | . . . . Robot Schematics Acquired . | . . . . Robots Built . | . . . . Authchips . | . . . . Time . | . . . . Total Robot Build Rating . | . . . . Part Schematics Acquired . | . . . . Parts Built . | . . . . Authchips . | . . . . Time . | . . . . Total Part Build Rating . | . . . . Part Studies Acquired . | . . . . Parts Repaired 1 | . 1 . . Time 26 | . 26 . . Parts Recycled . | . . . . Recycled Matter . | . . . . Retrieved Matter . | . . . . Retrieved Components 3 | . 3 . . Parts Scanalyzed . | . . . . Part Schematics Acquired . | . . . . Parts Damaged . | . . . . Bothacking | -11 -10 -10 -10 ------------ Run | Yrd Mat Min Sub Used RIF Installer . | . . . . Robots Hacked . | . . . . Non-combat . | . . . . Combat . | . . . . Robot Hacks Applied . | . . . . Relay Couplers Released . | . . . . Fabnet Peak Effective % . | . . . . Robots Rewired . | . . . . Allies Hacked . | . . . . Hacks Repelled . | . . . . Allies | -11 -10 -10 -10 -------- Run | Yrd Mat Min Sub Total Allies . | . . . . Largest Group . | . . . . Highest-Rated Group . | . . . . Highest-Rated Ally . | . . . . Total Orders 2 | . . . 2 ROAM 2 | . . . 2 Ally Attacks . | . . . . Total Damage . | . . . . Kills . | . . . . Allies Corrupted . | . . . . Allies Melted . | . . . . Intel | -11 -10 -10 -10 ------- Run | Yrd Mat Min Sub Active Infowar (turns) 319 | . 319 . . Terrain 319 | . 319 . . Robot Analysis Total . | . . . . Derelict Logs Recovered 2 | . . 2 . Drone Launches 2 | . . . 2 Drone Recoveries 1 | . . . 1 Exploration | -11 -10 -10 -10 ------------- Run | Yrd Mat Min Sub Turns Passed 2757 | 85 1035 1063 574 Spaces Moved 1489 | 55 506 636 292 Core 18 | 18 . . . Treads 1021 | 37 271 558 155 Legs 450 | . 235 78 137 Wheels . | . . . . Hover . | . . . . Flight . | . . . . Fastest Speed 50 | 50 120 120 160 Average Speed 153 | 124 141 155 174 Slowest Speed 190 | 160 160 160 190 Overloaded Moves . | . . . . Propulsion Burnouts . | . . . . Robots Hopped . | . . . . Potential Cave-ins . | . . . . Cave-ins Triggered . | . . . . Exploration Rate (%) 54 | 4 85 99 31 Regions Visited 3 Branch Regions 2 Pre-discovered Areas 1 | . . 1 . Known Exits Taken 1 | . 1 . . Unknown Exits Taken 2 | 1 . 1 . Scrap Searched 3 | . . 2 1 Spaces Dug . | . . . . Terrain Destroyed 1 | . . . 1 Melee . | . . . . Projectile 1 | . . . 1 AOE . | . . . . Terrain Rammed . | . . . . Walls Destroyed . | . . . . Machines Disabled . | . . . . Actions | -11 -10 -10 -10 --------- Run | Yrd Mat Min Sub Total 1782 | 71 679 706 326 Wait 137 | . 70 60 7 Move 1486 | 54 505 635 292 Hop . | . . . . Pick Up 24 | 10 9 3 2 Fast Attach 1 | . . 1 . Attach 16 | 6 8 . 2 Detach 1 | . . 1 . Swap 5 | 1 1 1 2 Drop 4 | . . 1 3 Fire 107 | . 85 4 18 Melee . | . . . . Ram . | . . . . Kick . | . . . . Crush 1 | . 1 . . Escape Stasis . | . . . . Rewire . | . . . . Trap . | . . . . Miscellaneous . | . . . . Route ------- -11/Scrapyard -10/Materials (discovered 4 exits: [*Mat x3] / *Min) -10/Mines (discovered 3 exits: [*Mat x2] / [*Sub]) -10/Subcaves (discovered 2 exits: [*Mat] / [Scr]) History --------- Turn | Location | Event 5 | -11/Scrapyard | Discovered new exit (range 15) 86 | -11/Scrapyard | Entered Materials 213 | -10/Materials | Discovered new exit (range 16) 310 | -10/Materials | Build established: Mutant 512 | -10/Materials | Core integrity fell below 50% 590 | -10/Materials | Discovered new exit (range 5) 831 | -10/Materials | Discovered new exit (range 16) 992 | -10/Materials | Identified exit to Mines 1032 | -10/Materials | Discovered new exit (range 8) 1084 | -10/Materials | Repaired Lgt. Assault Rifle 1121 | -10/Materials | Entered Mines 1229 | -10/Mines | Discovered new exit (range 5) 1259 | -10/Mines | Learned Materials non-interactive machine intel 1513 | -10/Mines | Learned location of Storage (-7) 1579 | -10/Mines | Discovered new exit (range 11) 1590 | -10/Mines | Found the Drone Emporium 1604 | -10/Mines | Found Prototype Device 1698 | -10/Mines | Discovered new exit (range 10) 2184 | -10/Mines | Entered Subcaves 2185 | -10/Subcaves | Approached by a straggling Scientist 2250 | -10/Subcaves | Core integrity fell below 20% 2453 | -10/Subcaves | Shifting Twisted Machinery released Sub. Beam Cannon 2464 | -10/Subcaves | Shifting Twisted Machinery released Mak. System Restoration Module 2467 | -10/Subcaves | Identified Sensor Drone Bay 2511 | -10/Subcaves | Discovered new exit (range 48) 2758 | -10/Subcaves | Destroyed by B9-CNY(R) with Subdweller Machine Gun Last Messages --------------- 9T-FXA(c): "We're getting close, I can feel it." 9T-FXA(c): "I think it's somewhere southwest of here" Sub. Beam Cannon falls loose from the Twisted Machinery. 02463_ Dropped Lgt. Treads. Mak. System Restoration Module falls loose from the Twisted Machinery. 02464_ Dropped Lgt. Treads. 02466_ Acquired Sub. Beam Cannon. 02467_ Identified Sensor Drone Bay. 02470_ Sensor Drone released from Sensor Drone Bay. 9T-FXA(c): "I think it's somewhere south of here" 02511_ EXIT=FOUND 02527_ Subatomizers dissect the Lgt. Treads. 9T-FXA(c): "I think it's somewhere south of here" 02581_ Sensor Drone retrieved by Sensor Drone Bay (no repairs). 9T-FXA(c): "I think it's somewhere west of here" 02595_ Sensor Drone destroyed. 9T-FXA(c): "We're getting close, I can feel it." 02694_ 0B-LZR(R) destroyed. 02725_ Subatomizers dissect the Wheel. 02732_ Acquired 6 matter. Map ----- +----------------------------------------------------+ | ??????????????# ##?????## #?# | | ??????????????# ##?????## ## ## | | ??????????????## ##?????# ### ### ## | | ???????????????# #??#### #??### ?# | | ??????????????## < #?## ##???? ?? | | ??????????????# #### ##????% ??? | | ??????????????# ### ##????? ??? | | ??????????????# ### ### ##?????? ???? | | ??????????????## ??# ## #??????????? | | ???????????????##?###!* #### #??????????? | | ??????????????????# #%[ #??# ]##??????????? | | ?????????????????## ![! #??# ##???????????? | | ????????????????## % #### #???????????? | | ????????????????# = # # #???????????? | | ???????????????## #???????????? | | ??????????????## # # ## ##??????????? | | ??????????????# ###### ##?????????? | | ??????????????## #### #######???? | | ???????????????###### #???? | | ????????????????????## / #???? | | ??????????????????#### ## ##???? | | ?????????????????## ### ######????? | | ????????????????## ## ###?????????? | | ???????????????## #???????????? | | ??????????????## #???????????? | | ??????????????# @ ## #???????????? | | ??????????????# ### ##???????????? | | ??????????????# ### #????????????? | | ??????????????## ;## #????????????? | | ???????????????# # ## #????????????? | | ??????????????# # ##???????????? | | ??????????????#